bitfinex/quotes_BTCUSD_20250624
["timestamp","ask_amount","ask_price","bid_price","bid_amount"]
[1750735472956,0.00013182,105220.0,105210.0,1.91464485]
[1750735473590,0.00013182,105220.0,105210.0,2.50447022]
[1750735473797,0.00013182,105220.0,105210.0,2.71327022]
[1750735474223,0.00013182,105220.0,105210.0,2.66327022]
[1750735474463,0.00013182,105220.0,105210.0,2.71327022]
[1750735474663,0.00013182,105220.0,105210.0,2.45980495]
[1750735474885,0.00013182,105220.0,105210.0,2.61860495]
[1750735475820,0.00013182,105220.0,105210.0,2.56860495]
[1750735475994,0.00013182,105220.0,105210.0,2.61860495]
[1750735476605,2.705e-05,105220.0,105210.0,2.61860495]
[1750735477018,2.705e-05,105220.0,105210.0,2.75150876]
[1750735477247,2.705e-05,105220.0,105210.0,2.59270876]
[1750735477427,2.705e-05,105220.0,105210.0,2.75150876]
[1750735477638,2.705e-05,105220.0,105210.0,2.70150876]
[1750735477891,2.705e-05,105220.0,105210.0,2.75150876]
[1750735479214,0.0001,105230.0,105220.0,0.66012852]
[1750735479448,0.0001,105230.0,105220.0,1.64002711]
[1750735480072,0.0001,105230.0,105220.0,1.66858611]
[1750735480482,0.0001,105230.0,105220.0,1.67458611]
[1750735481914,0.0001,105230.0,105220.0,1.62458611]
[1750735482246,0.0001,105230.0,105220.0,1.67458611]
[1750735482747,0.0001,105230.0,105220.0,1.62458611]
[1750735483134,0.0001,105230.0,105220.0,1.95961533]
[1750735483344,0.0001,105230.0,105220.0,1.86520782]
[1750735484829,0.0001,105230.0,105220.0,1.86720782]
[1750735485028,0.0001,105230.0,105220.0,1.84816782]
[1750735486254,0.0001,105230.0,105220.0,1.87642131]
[1750735486456,0.0001,105230.0,105220.0,1.97074567]
[1750735487630,0.0001,105230.0,105220.0,1.87642131]
[1750735487839,0.0001,105230.0,105220.0,1.97075574]
[1750735488536,0.0001,105230.0,105220.0,1.87642131]
[1750735489547,0.0001,105230.0,105220.0,1.97076124]
[1750735489702,0.0001,105230.0,105220.0,1.87642131]
[1750735491493,2.074e-05,105230.0,105220.0,1.87642131]
[1750735493200,2.074e-05,105230.0,105220.0,1.59139209]
[1750735493488,2.074e-05,105230.0,105220.0,1.87642131]
[1750735493773,2.074e-05,105230.0,105220.0,2.00932512]
[1750735494048,2.074e-05,105230.0,105220.0,2.02386597]
[1750735495015,2.074e-05,105230.0,105220.0,2.04290597]
[1750735495462,2.074e-05,105230.0,105220.0,2.04090597]
[1750735495880,2.074e-05,105230.0,105220.0,2.04490597]
[1750735496969,2.074e-05,105230.0,105220.0,2.03890597]
[1750735497177,2.074e-05,105230.0,105220.0,2.04690597]
[1750735497405,0.0001,105240.0,105230.0,0.8556086]
[1750735497626,0.0001,105240.0,105230.0,2.26679723]
[1750735497813,0.0001,105240.0,105230.0,2.28583723]
[1750735498496,0.0001,105240.0,105230.0,2.29183723]
[1750735498735,0.0001,105240.0,105230.0,2.29383723]
[1750735498956,0.0001,105240.0,105230.0,2.29183723]
[1750735499199,0.0001,105240.0,105230.0,2.29583723]
[1750735500105,0.0001,105240.0,105230.0,2.28983723]
[1750735500337,0.0001,105240.0,105230.0,2.29783723]
[1750735501446,2.063e-05,105240.0,105230.0,2.29783723]
[1750735501675,2.063e-05,105240.0,105230.0,2.59403723]
[1750735502133,2.063e-05,105240.0,105230.0,2.61073723]
[1750735502882,0.0156,105260.0,105250.0,0.55852621]
[1750735503091,0.00023865,105260.0,105250.0,1.19211838]
[1750735503506,0.00023865,105260.0,105250.0,1.22067038]
[1750735503724,0.00023865,105260.0,105250.0,1.23707038]
[1750735504208,0.00023865,105260.0,105250.0,1.24207038]
[1750735504634,0.00023865,105260.0,105250.0,1.23707038]
[1750735505054,0.00023865,105260.0,105250.0,1.26211038]
[1750735505263,0.00023865,105260.0,105250.0,1.26411038]
[1750735507760,0.0001,105270.0,105260.0,0.8040639]
[1750735507997,0.0001,105270.0,105260.0,1.05812576]
[1750735508440,0.0001,105270.0,105260.0,1.39812576]
[1750735508665,0.0001,105270.0,105260.0,1.52109485]
[1750735509397,0.0001,105270.0,105260.0,1.52309485]
[1750735510277,0.0001,105270.0,105260.0,1.53367264]
[1750735510537,0.0001,105270.0,105260.0,1.53967264]
[1750735512744,0.0001,105270.0,105260.0,1.52417264]
[1750735512957,0.0308,105270.0,105260.0,1.06160358]
[1750735513162,0.0308,105270.0,105260.0,1.22012358]
[1750735516226,0.0308,105270.0,105260.0,0.93509436]
[1750735516450,0.0308,105270.0,105260.0,1.05102579]
[1750735516651,0.0308,105270.0,105260.0,1.10555654]
[1750735517712,0.0308,105270.0,105260.0,1.18099779]
[1750735519815,0.0308,105270.0,105260.0,1.10555654]
[1750735519816,0.02884,105270.0,105260.0,1.10555654]
[1750735520631,0.02884,105270.0,105260.0,0.89596857]
[1750735520839,0.02884,105270.0,105260.0,1.18099779]
[1750735530624,0.02884,105270.0,105260.0,1.20003779]
[1750735535085,0.02884,105270.0,105260.0,0.91500857]
[1750735535308,0.02884,105270.0,105260.0,0.73744857]
[1750735535510,0.35602922,105270.0,105260.0,0.32200732]
[1750735535726,0.071,105270.0,105260.0,0.32200732]
[1750735535933,0.071,105270.0,105260.0,0.45200732]
[1750735536561,0.071,105270.0,105260.0,0.44600732]
[1750735536737,0.071,105270.0,105260.0,0.44900732]
[1750735539179,0.071,105270.0,105260.0,0.44700732]
[1750735544226,0.071,105270.0,105260.0,0.35150546]
[1750735548123,0.22928,105270.0,105260.0,0.35150546]
[1750735552325,0.071,105270.0,105260.0,0.35150546]
[1750735556296,0.3370846,105270.0,105260.0,0.35150546]
[1750735562170,0.02884,105270.0,105260.0,0.44700732]
[1750735562378,0.4801646,105270.0,105260.0,0.44700732]
[1750735562589,0.21408,105270.0,105260.0,0.44700732]
[1750735564995,0.4801646,105270.0,105260.0,0.44700732]
[1750735567176,0.21408,105270.0,105260.0,0.44700732]
[1750735567568,0.20024,105270.0,105260.0,0.44700732]
[1750735569424,0.23244,105270.0,105260.0,0.44700732]
[1750735570065,0.21594,105270.0,105260.0,0.44700732]
[1750735571083,0.3238246,105270.0,105260.0,0.44700732]
[1750735572770,0.0916,105280.0,105270.0,0.21848471]
[1750735572919,0.5413046,105280.0,105270.0,0.30448782]
[1750735573120,0.5413046,105280.0,105270.0,0.31398657]
[1750735573324,0.3411846,105280.0,105270.0,0.31398657]
[1750735573547,0.5574446,105280.0,105270.0,0.31398666]
[1750735573763,0.5574446,105280.0,105270.0,0.32348541]
[1750735574513,0.5574446,105280.0,105270.0,0.31598666]
[1750735574804,0.5574446,105280.0,105270.0,0.32548541]
[1750735575444,0.5574446,105280.0,105270.0,0.31598693]
[1750735575872,0.5574446,105280.0,105270.0,0.32548577]
[1750735576254,0.5574446,105280.0,105270.0,0.31598693]
[1750735577120,0.5574446,105280.0,105270.0,0.31598711]
[1750735577326,0.5574446,105280.0,105270.0,0.31598693]
[1750735577531,0.5574446,105280.0,105270.0,0.32548577]
[1750735577882,0.5574446,105280.0,105270.0,0.31598693]
[1750735578224,0.5574446,105280.0,105270.0,0.32548577]
[1750735579455,0.5574446,105280.0,105270.0,0.31598693]
[1750735579659,0.5574446,105280.0,105270.0,0.32548577]
[1750735579872,0.0601,105280.0,105270.0,1.04722997]
[1750735580073,0.0601,105280.0,105270.0,0.94106912]
[1750735580284,0.0767,105280.0,105270.0,0.94106912]
[1750735580449,0.0601,105280.0,105270.0,0.94106912]
[1750735580854,0.0601,105280.0,105270.0,0.95636912]
[1750735581185,0.0601,105280.0,105270.0,0.69028452]
[1750735581390,0.0601,105280.0,105270.0,0.95636912]
[1750735583989,0.6235692,105280.0,105270.0,0.002]
[1750735584247,0.8234492,105280.0,105270.0,0.002]
[1750735584799,0.29128,105280.0,105270.0,0.002]
[1750735585032,0.29128,105280.0,105270.0,0.19198765]
[1750735585033,0.5573646,105280.0,105270.0,0.19198765]
[1750735585201,0.5573646,105280.0,105270.0,0.20148694]
[1750735585427,0.5573646,105280.0,105270.0,0.21098605]
[1750735585599,0.5573646,105280.0,105270.0,0.22048525]
[1750735585811,0.5573646,105280.0,105270.0,0.21098614]
[1750735586207,0.5573646,105280.0,105270.0,0.22048516]
[1750735586410,0.5573646,105280.0,105270.0,0.22998409]
[1750735586606,0.5573646,105280.0,105270.0,0.21098614]
[1750735588716,0.5573646,105280.0,105270.0,0.20148694]
[1750735589045,0.5573646,105280.0,105270.0,0.21098614]
[1750735589269,0.11798,105280.0,105270.0,0.50556744]
[1750735589497,0.10198,105280.0,105270.0,0.52146744]
[1750735589711,0.3680646,105280.0,105270.0,0.25538284]
[1750735589918,0.3680646,105280.0,105270.0,0.23948284]
[1750735590136,0.3830646,105280.0,105270.0,0.23948284]
[1750735594167,0.3680646,105280.0,105270.0,0.23948284]
[1750735594782,0.10198,105280.0,105270.0,0.23948284]
[1750735594957,0.3680646,105280.0,105270.0,0.23948284]
[1750735597119,0.3846646,105280.0,105270.0,0.23948284]
[1750735598881,0.3846646,105280.0,105270.0,0.22998409]
[1750735599496,0.11858,105280.0,105270.0,0.22998409]
[1750735599712,0.3846646,105280.0,105270.0,0.22998409]
[1750735599915,0.3846646,105280.0,105270.0,0.24902409]
[1750735600188,0.3846646,105280.0,105270.0,0.23948284]
[1750735600392,0.3846646,105280.0,105270.0,0.22998409]
[1750735600593,0.11858,105280.0,105270.0,0.22998409]
[1750735600807,0.3846646,105280.0,105270.0,0.22998409]
[1750735601024,0.3846646,105280.0,105270.0,0.23948284]
[1750735601212,0.3846646,105280.0,105270.0,0.22998409]
[1750735601967,0.3846646,105280.0,105270.0,0.23948284]
[1750735603162,0.3846646,105280.0,105270.0,0.22998409]
[1750735603920,0.3846646,105280.0,105270.0,0.22048525]
[1750735604348,0.3846646,105280.0,105270.0,0.22998427]
[1750735605238,0.3846646,105280.0,105270.0,0.2394832]
[1750735605476,0.3846646,105280.0,105270.0,0.22998427]
[1750735605666,0.3846646,105280.0,105270.0,0.2394832]
[1750735605872,0.3846646,105280.0,105270.0,0.23948275]
[1750735606524,0.3846646,105280.0,105270.0,0.22998355]
[1750735606917,0.3846646,105280.0,105270.0,0.22048471]
[1750735607117,0.3846646,105280.0,105270.0,0.22998355]
[1750735607327,0.3846646,105280.0,105270.0,0.22998346]
[1750735608244,0.3846646,105280.0,105270.0,0.22048471]
[1750735608447,0.3846646,105280.0,105270.0,0.22998355]
[1750735609433,0.3846646,105280.0,105270.0,0.2394823]
[1750735610067,0.3846646,105280.0,105270.0,0.22048471]
[1750735610442,0.3846646,105280.0,105270.0,0.21098578]
[1750735610646,0.3846646,105280.0,105270.0,0.21098614]
[1750735610856,0.3846646,105280.0,105270.0,0.22048516]
[1750735611181,0.11858,105280.0,105270.0,0.229984]
[1750735611413,0.3846646,105280.0,105270.0,0.22998409]
[1750735611999,0.3846646,105280.0,105270.0,0.23948284]
[1750735612136,0.3846646,105280.0,105270.0,0.23948293]
[1750735612347,0.3846646,105280.0,105270.0,0.22998409]
[1750735612854,0.3846646,105280.0,105270.0,0.22048516]
[1750735613593,0.3846646,105280.0,105270.0,0.22998409]
[1750735613972,0.3846646,105280.0,105270.0,0.22048516]
[1750735614183,0.3846646,105280.0,105270.0,0.22998409]
[1750735614402,0.3846646,105280.0,105270.0,0.22048516]
[1750735615261,0.3846646,105280.0,105270.0,0.22998409]
[1750735615465,0.3846646,105280.0,105270.0,0.22048516]
[1750735615673,0.3846646,105280.0,105270.0,0.23948293]
[1750735615827,0.3846646,105280.0,105270.0,0.22998409]
[1750735617312,0.3846646,105280.0,105270.0,0.22048516]
[1750735617937,0.3846646,105280.0,105270.0,0.22998409]
[1750735618374,0.3846646,105280.0,105270.0,0.23948293]
[1750735618575,0.3846646,105280.0,105270.0,0.22048516]
[1750735618778,0.3846646,105280.0,105270.0,0.22998409]
[1750735620299,0.3846646,105280.0,105270.0,0.23948293]
[1750735620493,0.3846646,105280.0,105270.0,0.22998355]
[1750735620821,0.3846646,105280.0,105270.0,0.21098578]
[1750735621782,0.3846646,105280.0,105270.0,0.21098614]
[1750735622191,0.3846646,105280.0,105270.0,0.22048516]
[1750735622393,0.3846646,105280.0,105270.0,0.20148703]
[1750735622622,0.6662492,105280.0,105270.0,0.002]
[1750735623083,0.5578046,105280.0,105270.0,0.19198765]
[1750735623285,0.5578046,105280.0,105270.0,0.20148694]
[1750735623492,0.5578046,105280.0,105270.0,0.20148703]
[1750735623706,0.5578046,105280.0,105270.0,0.21098632]
[1750735623912,0.5578046,105280.0,105270.0,0.22048552]
[1750735623913,0.5778046,105280.0,105270.0,0.22048552]
[1750735624436,0.5778046,105280.0,105270.0,0.21098632]
[1750735624660,0.5623046,105280.0,105270.0,0.22048534]
[1750735624878,0.5623046,105280.0,105270.0,0.22048543]
[1750735625536,0.5623046,105280.0,105270.0,0.22998445]
[1750735625759,0.5423046,105280.0,105270.0,0.22048543]
[1750735625972,0.5257046,105280.0,105270.0,0.22998445]
[1750735626392,0.5257046,105280.0,105270.0,0.23948338]
[1750735626826,0.5257046,105280.0,105270.0,0.22048543]
[1750735627024,0.5409046,105280.0,105270.0,0.22048543]
[1750735627234,0.5409046,105280.0,105270.0,0.22998445]
[1750735627567,0.5409046,105280.0,105270.0,0.22048543]
[1750735628422,0.5409046,105280.0,105270.0,0.22048552]
[1750735628634,0.5409046,105280.0,105270.0,0.21098632]
[1750735628838,0.5409046,105280.0,105270.0,0.22048552]
[1750735629242,0.5409046,105280.0,105270.0,0.21098632]
[1750735629438,1.1633892,105280.0,105270.0,0.002]
[1750735629648,1.17793005,105280.0,105270.0,0.002]
[1750735643379,0.64576085,105280.0,105270.0,0.002]
[1750735643537,1.17793005,105280.0,105270.0,0.002]
[1750735644145,0.27388085,105280.0,105270.0,0.20848765]
[1750735644382,0.53996545,105280.0,105270.0,0.21798703]
[1750735644759,0.80605005,105280.0,105270.0,0.22748632]
[1750735645367,0.80605005,105280.0,105270.0,0.23698552]
[1750735645570,0.80605005,105280.0,105270.0,0.22748632]
[1750735645766,0.80605005,105280.0,105270.0,0.23698552]
[1750735645969,0.53996545,105280.0,105270.0,0.23698552]
[1750735646176,0.53996545,105280.0,105270.0,0.24648463]
[1750735646382,0.53996545,105280.0,105270.0,0.22748632]
[1750735646539,0.53996545,105280.0,105270.0,0.21798703]
[1750735646739,0.53996545,105280.0,105270.0,0.22748632]
[1750735647741,0.53996545,105280.0,105270.0,0.23698552]
[1750735647905,0.53996545,105280.0,105270.0,0.22048552]
[1750735648261,0.53996545,105280.0,105270.0,0.21098632]
[1750735649073,0.53996545,105280.0,105270.0,0.22048552]
[1750735649918,0.53996545,105280.0,105270.0,0.20148703]
[1750735650318,0.83795005,105280.0,105270.0,0.002]
[1750735651288,0.83795005,105280.0,105270.0,0.19198765]
[1750735652109,0.83795005,105280.0,105270.0,0.002]
[1750735652514,1.17795005,105280.0,105270.0,0.002]
[1750735663666,1.16235005,105280.0,105270.0,0.002]
[1750735664734,1.17865005,105280.0,105270.0,0.002]
[1750735667885,1.27415191,105280.0,105270.0,0.002]
[1750735668660,1.28083462,105280.0,105270.0,0.002]
[1750735668982,1.27415191,105280.0,105270.0,0.002]
[1750735670875,0.01454085,105270.0,105230.0,0.10796085]
[1750735671107,0.5321692,105240.0,105230.0,0.1080995]
[1750735671312,0.7310092,105240.0,105230.0,0.1080995]
[1750735671512,0.4649246,105240.0,105230.0,0.1080995]
[1750735671922,0.4649246,105240.0,105230.0,0.0918995]
[1750735672125,0.74555005,105240.0,105230.0,0.00013865]
[1750735672361,0.76065005,105240.0,105230.0,0.00013865]
[1750735674863,0.76265005,105240.0,105230.0,0.00013865]
[1750735675225,0.76465005,105240.0,105230.0,0.00013865]
[1750735677511,1.10465005,105240.0,105230.0,0.00013865]
[1750735678898,1.1152938,105240.0,105230.0,0.00013865]
[1750735680129,0.8492092,105240.0,105230.0,0.00013865]
[1750735683298,1.1306938,105240.0,105230.0,0.00013865]
[1750735683537,1.3590138,105240.0,105230.0,0.00013865]
[1750735683927,1.3590138,105240.0,105220.0,0.0163]
[1750735683928,0.2660846,105230.0,105220.0,0.01595584]
[1750735684612,0.2660846,105230.0,105220.0,0.02545964]
[1750735684814,1.0909292,105240.0,105220.0,0.02545964]
[1750735685082,1.0889292,105240.0,105220.0,0.02545964]
[1750735685270,1.0889292,105240.0,105220.0,0.02545973]
[1750735685486,0.001,105230.0,105220.0,0.02545973]
[1750735685998,1.0889292,105240.0,105220.0,0.02545973]
[1750735686156,1.0919292,105240.0,105220.0,0.02545973]
[1750735686375,1.0889292,105240.0,105220.0,0.01595584]
[1750735686853,0.001,105230.0,105220.0,0.01595584]
[1750735687139,1.0889292,105240.0,105220.0,0.01595584]
[1750735687345,1.0889292,105240.0,105220.0,0.02545973]
[1750735687543,1.0889292,105240.0,105220.0,0.01595584]
[1750735687960,1.0899292,105240.0,105220.0,0.01595584]
[1750735688409,1.0745292,105240.0,105220.0,0.01595584]
[1750735688633,1.0775292,105240.0,105220.0,0.01595584]
[1750735688842,1.18843106,105240.0,105220.0,0.01595584]
[1750735690456,1.17303106,105240.0,105220.0,0.01595584]
[1750735691727,1.17254809,105240.0,105220.0,0.28204044]
[1750735692051,0.70810646,105240.0,105220.0,0.48841121]
[1750735692268,0.19876,105230.0,105220.0,0.30838849]
[1750735692506,0.19876,105230.0,105220.0,0.31789229]
[1750735692741,0.19876,105230.0,105220.0,0.327396]
[1750735692930,0.19876,105230.0,105220.0,0.31789229]
[1750735693155,0.19876,105230.0,105220.0,0.30838849]
[1750735693312,0.19876,105230.0,105220.0,0.2988846]
[1750735693544,0.19876,105230.0,105220.0,0.30838849]
[1750735693746,0.19976,105230.0,105220.0,0.30838849]
[1750735695443,0.19976,105230.0,105220.0,0.2988846]
[1750735695854,0.19976,105230.0,105220.0,0.30838849]
[1750735696255,0.19976,105230.0,105220.0,0.2988846]
[1750735696455,0.19976,105230.0,105220.0,0.0328]
[1750735697439,0.19976,105230.0,105220.0,0.05180769]
[1750735697688,0.19976,105230.0,105220.0,0.04230389]
[1750735698098,0.19976,105230.0,105220.0,0.0328]
[1750735698351,0.19976,105230.0,105220.0,0.04230389]
[1750735698582,0.19976,105230.0,105220.0,0.30838849]
[1750735698774,0.19976,105230.0,105220.0,0.2988846]
[1750735699274,0.19976,105230.0,105220.0,0.30838849]
[1750735700113,0.4658446,105230.0,105220.0,0.04230389]
[1750735701209,0.4658446,105230.0,105220.0,0.0165]
[1750735705835,0.9579446,105230.0,105220.0,0.0165]
[1750735707785,0.9579446,105230.0,105220.0,0.02600389]
[1750735707975,0.9579446,105230.0,105220.0,0.0165]
[1750735710673,0.9579446,105230.0,105220.0,0.0324]
[1750735711106,0.9579446,105230.0,105220.0,0.0165]
[1750735713731,0.9579446,105230.0,105220.0,0.02600389]
[1750735716455,0.9579446,105230.0,105220.0,0.0165]
[1750735719106,0.9579446,105230.0,105220.0,0.02600389]
[1750735719389,0.9579446,105230.0,105220.0,0.0165]
[1750735719515,0.9579446,105230.0,105220.0,0.02600389]
[1750735721296,0.9579446,105230.0,105220.0,0.03550769]
[1750735721514,0.9579446,105230.0,105220.0,0.02600389]
[1750735721730,0.9579446,105230.0,105220.0,0.03550769]
[1750735722250,0.9579446,105230.0,105220.0,0.02600389]
[1750735723603,0.9579446,105230.0,105220.0,0.0165]
[1750735723903,0.9579446,105230.0,105220.0,0.02600389]
[1750735727216,0.69186,105230.0,105220.0,0.02600389]
[1750735727409,0.9579446,105230.0,105220.0,0.0355076]
[1750735727611,0.69186,105230.0,105220.0,0.22558562]
[1750735727816,0.9579446,105230.0,105220.0,0.23508933]
[1750735728044,0.9579446,105230.0,105220.0,0.0165]
[1750735729804,0.69186,105230.0,105220.0,0.0165]
[1750735729970,0.9579446,105230.0,105220.0,0.0165]
[1750735734570,0.9898446,105230.0,105210.0,0.0152]
[1750735734748,0.2660846,105220.0,105210.0,0.0152]
[1750735736458,0.2660846,105220.0,105210.0,0.0162]
[1750735736635,0.2660846,105220.0,105210.0,0.0182]
[1750735737019,0.2660846,105220.0,105210.0,0.0172]
[1750735738046,0.2670846,105220.0,105210.0,0.0152]
[1750735741776,0.57901005,105220.0,105210.0,0.0002]
[1750735742414,1.01451191,105220.0,105210.0,0.0002]
[1750735742680,1.02119448,105220.0,105210.0,0.0002]
[1750735742902,1.02119426,105220.0,105210.0,0.0002]
[1750735744231,1.28727886,105220.0,105210.0,0.0002]
[1750735744451,1.02119426,105220.0,105210.0,0.0002]
[1750735744668,1.28727886,105220.0,105210.0,0.0002]
[1750735746110,1.28059651,105220.0,105210.0,0.0002]
[1750735746315,1.28727133,105220.0,105210.0,0.0002]
[1750735746512,1.28059651,105220.0,105210.0,0.0002]
[1750735746720,1.28726736,105220.0,105210.0,0.0002]
[1750735747148,6.36954654,105220.0,105210.0,0.0002]
[1750735747618,6.37904989,105220.0,105210.0,0.0002]
[1750735748250,6.38855342,105220.0,105210.0,0.0002]
[1750735748519,6.42904989,105220.0,105210.0,0.0002]
[1750735748722,6.4480513,105220.0,105210.0,0.0002]
[1750735748894,6.43854759,105220.0,105210.0,0.0002]
[1750735749118,6.44805121,105220.0,105210.0,0.0002]
[1750735749731,6.45755501,105220.0,105210.0,0.0002]
[1750735749911,6.44805121,105220.0,105210.0,0.0002]
[1750735750106,6.43854759,105220.0,105210.0,0.0002]
[1750735750767,6.42904415,105220.0,105210.0,0.0002]
[1750735751405,1.02117702,105220.0,105210.0,0.0002]
[1750735751639,1.21913702,105220.0,105210.0,0.0002]
[1750735751863,1.21247191,105220.0,105210.0,0.0002]
[1750735753163,1.48521655,105220.0,105210.0,0.0002]
[1750735753371,6.56745618,105220.0,105210.0,0.0002]
[1750735753587,6.59603918,105220.0,105210.0,0.0002]
[1750735753786,6.39807918,105220.0,105210.0,0.0002]
[1750735754009,6.59603909,105220.0,105210.0,0.0002]
[1750735754680,6.59603898,105220.0,105210.0,0.0002]
[1750735755107,6.63937905,105220.0,105210.0,0.0002]
[1750735755320,6.6650444,105220.0,105210.0,0.0002]
[1750735755523,6.74230386,105220.0,105210.0,0.0002]
[1750735756359,6.46276706,105220.0,105210.0,0.0002]
[1750735756536,6.51176706,105220.0,105210.0,0.0002]
[1750735756883,6.52506218,105220.0,105210.0,0.0002]
[1750735757110,5.3659585,105200.0,105190.0,0.0002]
[1750735757284,5.65938036,105200.0,105190.0,0.00033182]
[1750735758133,5.68796836,105200.0,105190.0,0.00033182]
[1750735759198,5.68796836,105200.0,105180.0,0.0002]
[1750735759199,6.48849657,105200.0,105180.0,0.0002]
[1750735759407,6.12967886,105190.0,105180.0,0.0002]
[1750735763150,6.15863869,105190.0,105180.0,0.0002]
[1750735763353,6.15863869,105190.0,105180.0,0.0042]
[1750735763556,6.58884261,105190.0,105180.0,0.0042]
[1750735763760,6.60792646,105190.0,105180.0,0.0002]
[1750735764053,6.58950058,105190.0,105180.0,0.0022]
[1750735764726,6.59050058,105190.0,105180.0,0.0022]
[1750735764899,6.60000646,105190.0,105180.0,0.0022]
[1750735765305,6.60000646,105190.0,105180.0,0.0002]
[1750735765719,6.60200646,105190.0,105180.0,0.0002]
[1750735766272,6.59250012,105190.0,105180.0,0.0002]
[1750735766650,6.98882324,105190.0,105180.0,0.0002]
[1750735766849,0.01454085,105180.0,105170.0,0.0002]
[1750735767077,0.85053971,105180.0,105170.0,0.00033857]
[1750735767283,0.8600464,105180.0,105170.0,0.00033857]
[1750735767415,0.85718822,105180.0,105170.0,0.00033857]
[1750735768019,0.87498822,105180.0,105170.0,0.00033857]
[1750735768451,0.88449491,105180.0,105170.0,0.00033857]
[1750735768973,0.87498822,105180.0,105170.0,0.00033857]
[1750735769145,0.87499018,105180.0,105170.0,0.00033857]
[1750735772093,0.90093018,105180.0,105170.0,0.01613857]
[1750735772596,0.92647971,105180.0,105170.0,0.00033857]
[1750735772825,0.91057971,105180.0,105170.0,0.00033857]
[1750735773047,5.96723243,105180.0,105170.0,0.00033857]
[1750735773266,5.96723233,105180.0,105170.0,0.00033857]
[1750735774955,5.98333233,105180.0,105170.0,0.00033857]
[1750735776034,6.02506528,105180.0,105170.0,0.00033857]
[1750735776784,6.03457251,105180.0,105170.0,0.00033857]
[1750735776983,6.02506528,105180.0,105170.0,0.00033857]
[1750735777428,6.51053523,105180.0,105170.0,0.00033857]
[1750735777626,6.54857808,105180.0,105170.0,0.00033857]
[1750735777981,6.5580855,105180.0,105170.0,0.00033857]
[1750735778191,0.0095076,105170.0,105160.0,0.0002]
[1750735778389,5.65763961,105170.0,105160.0,0.0002]
[1750735778796,5.64813201,105170.0,105160.0,0.0002]
[1750735778997,5.6789754,105170.0,105160.0,0.0002]
[1750735779671,5.68848309,105170.0,105160.0,0.0022]
[1750735779871,5.69799096,105170.0,105160.0,0.0022]
[1750735780060,5.6979896,105170.0,105160.0,0.0022]
[1750735780283,5.6979896,105170.0,105160.0,0.0032]
[1750735780806,5.68848173,105170.0,105160.0,0.0032]
[1750735781013,5.68848173,105170.0,105160.0,0.0002]
[1750735781259,5.69798951,105170.0,105160.0,0.0002]
[1750735781464,5.70198951,105170.0,105160.0,0.0002]
[1750735781882,5.692482,105170.0,105160.0,0.0002]
[1750735782287,5.70198987,105170.0,105160.0,0.0002]
[1750735782488,5.692482,105170.0,105160.0,0.0002]
[1750735782986,5.71149774,105170.0,105160.0,0.0002]
[1750735783186,5.70198978,105170.0,105160.0,0.0002]
[1750735783957,5.68297431,105170.0,105160.0,0.0002]
[1750735784187,5.692482,105170.0,105160.0,0.0002]
[1750735784746,5.69248554,105170.0,105160.0,0.0002]
[1750735784954,5.69248545,105170.0,105160.0,0.0002]
[1750735786193,5.70199707,105170.0,105160.0,0.0002]
[1750735786962,5.80622588,105170.0,105160.0,0.0002]
[1750735787299,5.71150494,105170.0,105160.0,0.0002]
[1750735787515,5.71150985,105170.0,105160.0,0.0002]
[1750735788631,5.74004547,105170.0,105160.0,0.0002]
[1750735789286,5.7305376,105170.0,105160.0,0.0002]
[1750735790610,5.73053951,105170.0,105160.0,0.0002]
[1750735791025,5.72103182,105170.0,105160.0,0.0002]
[1750735791171,5.70523182,105170.0,105160.0,0.0002]
[1750735791753,5.69572422,105170.0,105160.0,0.0002]
[1750735791970,5.6671886,105170.0,105160.0,0.0002]
[1750735792191,0.14518925,105170.0,105160.0,0.0315]
[1750735792399,0.77662909,105170.0,105160.0,0.0315]
[1750735793494,0.86155044,105170.0,105160.0,0.0315]
[1750735793688,1.05699044,105170.0,105160.0,0.0315]
[1750735793865,1.05699044,105170.0,105160.0,0.04100922]
[1750735794088,1.05795044,105170.0,105160.0,0.04100922]
[1750735794512,1.05795044,105170.0,105160.0,0.0315]
[1750735794719,1.05795044,105170.0,105160.0,0.04100931]
[1750735795162,0.42692,105170.0,105160.0,0.24070482]
[1750735795341,0.42692,105170.0,105160.0,0.25021386]
[1750735795549,0.42692,105170.0,105160.0,0.26923149]
[1750735796363,0.42592,105170.0,105160.0,0.26923149]
[1750735796617,0.42592,105170.0,105160.0,0.27023149]
[1750735797039,0.22852,105170.0,105160.0,0.27023149]
[1750735797249,0.42592,105170.0,105160.0,0.27223149]
[1750735799613,0.42588,105170.0,105160.0,0.27223149]
[1750735804974,0.28449694,105180.0,105170.0,0.00950832]
[1750735805177,0.19745844,105180.0,105170.0,0.24909244]
[1750735806450,0.04105844,105180.0,105170.0,0.24909244]
[1750735806625,0.19745844,105180.0,105170.0,0.25109244]
[1750735807995,0.19745844,105180.0,105170.0,0.24909244]
[1750735808411,0.19845844,105180.0,105170.0,0.25209244]
[1750735809013,0.19745844,105180.0,105170.0,0.25209244]
[1750735809249,0.19741844,105180.0,105170.0,0.25209244]
[1750735809454,0.19741844,105180.0,105170.0,0.25409244]
[1750735809672,0.19741844,105180.0,105170.0,0.53845094]
[1750735809881,0.19741844,105180.0,105170.0,0.6339528]
[1750735810535,0.19741844,105180.0,105170.0,0.3495943]
[1750735810685,0.00013844,105180.0,105170.0,0.3495943]
[1750735810881,0.19741844,105180.0,105170.0,0.3495943]
[1750735814610,0.19741844,105180.0,105170.0,0.23507661]
[1750735814808,0.48177694,105180.0,105170.0,0.22556829]
[1750735815033,0.19741844,105180.0,105170.0,0.24458475]
[1750735815246,0.19741844,105180.0,105170.0,0.26360076]
[1750735815424,0.19741844,105180.0,105170.0,0.2540928]
[1750735815857,0.19741844,105180.0,105170.0,0.26360076]
[1750735816061,0.19741844,105180.0,105170.0,0.27310863]
[1750735816265,0.19741844,105180.0,105170.0,0.25409244]
[1750735817107,0.19741844,105180.0,105170.0,0.24458448]
[1750735817312,0.19741844,105180.0,105170.0,0.24458484]
[1750735817728,0.19741844,105180.0,105170.0,0.0202]
[1750735818113,0.48177694,105180.0,105170.0,0.0202]
[1750735818517,0.48177694,105180.0,105170.0,0.005]
[1750735818934,0.48177694,105180.0,105170.0,0.0206]
[1750735819136,0.48177694,105180.0,105170.0,0.03010841]
[1750735819337,0.48177694,105180.0,105170.0,0.0206]
[1750735821616,0.49817694,105180.0,105170.0,0.005]
[1750735822256,0.62351965,105180.0,105170.0,0.005]
[1750735823041,0.60821965,105180.0,105170.0,0.005]
[1750735824455,0.96341965,105180.0,105170.0,0.005]
[1750735826372,1.24777815,105180.0,105170.0,0.005]
[1750735826547,0.96341965,105180.0,105170.0,0.005]
[1750735826766,1.24777815,105180.0,105170.0,0.005]